Cogmind - Beta 16 @@@ ROGUE MODE // 2025.10.30 @ 00:13:40 // Halloween2019/Abominations Player: MolePlayingNice Result: Destroyed by Major Abomination with Enhanced Hardcell Cannon Performance ------------- Evolutions (5) 2500 Regions Visited (7) 1400 Robots Destroyed (129) 645 Value Destroyed (8703) 8703 Prototype IDs (12) 240 Alien Tech Used (2) 400 Bonus (0) 0 TOTAL SCORE: 13888 Bonus ------- None Cogmind --------- Core Integrity 0/1000 Matter 262/300 Energy 329/350 System Corruption 43% Temperature Warm (124) Movement Immobile (Siege) Ox1 Location -1/Lair Parts ------- > --- POWER (1) -------- Quantum Reactor > --- PROPULSION (4) --- Heavy Treads Wheel > --- UTILITY (8) ------ Improved Coolant Injector High-capacity Storage Unit Enhanced Optical Array Improved Weapon Cycler Improved Medium Armor Plating Improved Hardlight Generator Bomb Drone Bay (0/16) > --- WEAPON (4) ------- Heavy Gatling Laser Guided Plasma Cannon Antimatter Cannon Mass Driver > --- INVENTORY (20) --- Light Angular Momentum Engine Neutrino Core Antimatter Reactor Light Antimatter Reactor Wheel Advanced Heat Sink Energy Well (350) Medium Matter Pod (100) Improved Terrain Scanner Improved Particle Accelerator Improved Transmission Jammer Advanced Shield Generator Long-range Tractor Beam Heavy Ion Cannon Hypervelocity Gauss Rifle Mass Driver Heavy Gauss Cannon Improved Proton Missile Launcher Gamma Bomb Array Welding Torch Peak State ------------ > --- POWER ------------ Matter Drive > --- PROPULSION ------- Improved Treads Wheel > --- UTILITY ---------- Improved Coolant Injector High-capacity Storage Unit Enhanced Optical Array Improved Weapon Cycler Medium Reactive Plating Phase Redirector Bomb Drone Bay > --- WEAPON ----------- Linked Autogun Antimatter Cannon Improved Proton Missile Launcher > --- INVENTORY -------- Light Angular Momentum Engine Neutrino Core Antimatter Reactor Light Antimatter Reactor Advanced Heat Sink Energy Well Medium Matter Pod Improved Transmission Jammer Improved Medium Armor Plating Improved Hardlight Generator Advanced Shield Generator Long-range Tractor Beam Heavy Gatling Laser Heavy Ion Cannon Guided Plasma Cannon Hypervelocity Gauss Rifle Mass Driver Improved Proton Missile Launcher Welding Torch [Rating: 103] Favorites ----------- Power Light Ion Engine Engine Light Ion Engine Power Core Neutrino Core Reactor Matter Drive Propulsion Wheel Treads Light Treads Leg Aluminum Leg Wheel Wheel Utility Core Analyzer Device Bomb Drone Bay Storage High-capacity Storage Unit Processor Core Analyzer Protection Improved Medium Armor Plating Artifact Phase Redirector Weapon Light Cannon Energy Gun Heavy Gatling Laser Energy Cannon Guided Plasma Cannon Ballistic Gun Linked Autogun Ballistic Cannon Light Cannon Launcher Improved Proton Missile Launcher Special Weapon Welding Torch Impact Weapon Hammer Slashing Weapon Scythe Piercing Weapon Spear Build | -11 -10 -9 -8 -7 -6 -5 -1 ------- Run | Yrd Mat Mat Mat Fac Fac Fac Lai Slots Evolved 10 | . . 2 2 2 2 2 . Power . | . . . . . . . . Propulsion 2 | . . . 1 1 . . . Utility 6 | . . 1 1 . 2 2 . Weapon 2 | . . 1 . 1 . . . Parts Attached 112 | . 6 5 5 22 17 56 1 Power 10 | . . . 1 1 1 6 1 Engine 4 | . . . 1 1 1 1 . Core 3 | . . . . . . 3 . Reactor 3 | . . . . . . 2 1 Propulsion 27 | . 2 . 1 7 3 14 . Treads 6 | . 2 . . . 2 2 . Leg 8 | . . . 1 5 1 1 . Wheel 13 | . . . . 2 . 11 . Hover . | . . . . . . . . Flight . | . . . . . . . . Utility 40 | . 2 3 2 5 5 23 . Device 18 | . . 2 1 2 2 11 . Storage 3 | . 1 1 . . . 1 . Processor 8 | . . . 1 2 2 3 . Hackware . | . . . . . . . . Protection 10 | . 1 . . 1 1 7 . Artifact 1 | . . . . . . 1 . Weapon 35 | . 2 2 1 9 8 13 . Energy Gun 4 | . . . . 2 . 2 . Energy Cannon 2 | . . . . 1 . 1 . Ballistic Gun 5 | . . 1 1 2 . 1 . Ballistic Cannon 11 | . 1 1 . 3 5 1 . Launcher 4 | . . . . . . 4 . Special Weapon 1 | . . . . . . 1 . Impact Weapon 2 | . 1 . . 1 . . . Slashing Weapon 4 | . . . . . 2 2 . Piercing Weapon 2 | . . . . . 1 1 . Special Melee Weapon . | . . . . . . . . Unidentified Prototypes 14 | . . . . 3 1 10 . Corrupted Parts 2 | . . . . . 1 1 . System Corruption 4 | . . . . . 2 2 . Parts Lost 33 | . . 1 1 2 2 27 . Power 6 | . . . 1 . 1 4 . Propulsion 11 | . . . . . 1 10 . Utility 11 | . . 1 . 1 . 9 . Weapon 5 | . . . . 1 . 4 . Highest Loss Streak 6 | . . 1 1 1 2 6 . To Critical Strikes 1 | . . . . . . 1 . Average Backups 15 | . 8 9 12 14 14 17 18 Power 2 | . 1 2 2 2 1 2 3 Propulsion 1 | . 2 1 1 1 1 . 1 Utility 6 | . 2 3 5 6 4 8 8 Weapon 5 | . 2 2 3 4 6 5 5 Tool/Special . | . . . . . . . . Unused Backups 32 | . 7 . 1 8 1 9 6 Power 5 | . 1 . 1 1 . . 2 Propulsion 6 | . 4 . . 2 . . . Utility 13 | . 2 . . 4 1 4 2 Weapon 8 | . . . . 1 . 5 2 Tool/Special . | . . . . . . . . Average Slot Usage (%) 90 | . 94 96 97 99 99 84 87 Engine 4 | . 14 11 7 6 5 . . Core 1 | . . . . . . 2 . Treads 9 | . 27 22 18 8 8 5 5 Leg 4 | . . . 8 17 8 . . Wheel 6 | . . . . 4 8 9 11 Device 10 | . . 9 10 7 6 13 23 Storage 6 | . 14 11 9 7 6 5 5 Processor 9 | . . . 8 7 15 12 5 Protection 7 | . 8 9 7 6 9 8 5 Energy Gun 1 | . 2 . . 4 . 1 5 Ballistic Gun 4 | . 10 6 6 7 . 2 . Ballistic Cannon 9 | . 11 20 18 14 16 3 10 Impact Weapon 1 | . 3 5 2 2 . . . Slashing Weapon 3 | . . . . . 4 5 . Piercing Weapon 1 | . . . . . 3 1 . Peak Build Rating 103 | . 8 12 17 33 57 103 101 Average Rating 54 | . 7 10 14 26 49 79 98 On Entrance 28 | 6 6 8 10 17 29 55 97 Avg Prop Armor Cover (%) 7 | . . . 4 7 11 7 7 Naked Turns . | . . . . . . . . Heaviest Build 120 | 12 21 35 36 49 64 120 117 Greatest Support 70 | 20 40 40 40 40 56 70 20 Greatest Overweight (x) 23 | . . . . 4 3 23 5 Average Overweight (x) 1 | . . . . . 1 2 5 Largest Inventory Capacity 20 | . 10 15 15 15 15 20 20 Average Capacity 16 | . 9 11 15 15 15 19 20 Most Carried 20 | . 10 10 15 15 15 20 20 Average Carried 15 | . 8 9 12 14 14 17 18 Final Capacity 20 | 8 10 15 15 15 15 20 20 Final Carried 20 | 6 10 10 15 15 15 17 20 Class Distribution -------------------- 26% | Scavenger-Tank 22% | Scavenger-Gladiator 14% | Scavenger-Gunner 14% | Gunner 11% | Mutant 5% | Scavenger-Mutant Dominant Class ---------------- Mutant | -10/Materials Mutant | -9/Materials Gunner | -8/Materials Scavenger-Gunner | -7/Factory Scavenger-Gunner | -6/Factory Scavenger-Tank | -5/Factory Scavenger-Tank | -1/Lair Resources | -11 -10 -9 -8 -7 -6 -5 -1 ----------- Run | Yrd Mat Mat Mat Fac Fac Fac Lai Matter Collected 10148 | 200 201 814 312 780 513 7328 . Remotely 4152 | . . . . . . 4152 . Salvage Created 7968 | . 259 353 429 603 634 5690 . Parts 481 | . 21 23 12 27 19 379 . Haulers Intercepted 1 | . 1 . . . . . . Recyclers Shooed 1 | . . . . . . 1 . Parts Field Recycled . | . . . . . . . . Retrieved Matter . | . . . . . . . . Parts Self-Destructed . | . . . . . . . . Prevented . | . . . . . . . . Parts Restored . | . . . . . . . . Kills | -11 -10 -9 -8 -7 -6 -5 -1 ------- Run | Yrd Mat Mat Mat Fac Fac Fac Lai Combat Hostiles Destroyed 139 | . 5 10 8 15 11 90 . Melee 21 | . . . . . 8 13 . Guns 63 | . 2 3 1 5 . 52 . Cannons 53 | . 3 7 7 9 3 24 . Classes Destroyed 10 | . 3 . . 2 . 5 . Hauler 1 | . 1 . . . . . . Recycler 2 | . . . . . . 2 . Swarmer 1 | . . . . 1 . . . Grunt 7 | . 1 . . 3 1 2 . Brawler 1 | . . . . 1 . . . Specialist 1 | . . . . . . 1 . Hunter 1 | . . . . . . 1 . Mutant 2 | . . . . . . 2 . Abomination 126 | . 4 10 8 10 10 84 . Anomaly 11 | . . . . . . 11 . Best Kill Streak 7 | . 2 3 4 5 2 7 . Combat Bots Only 6 | . 1 3 4 5 2 6 . Max Kills in Single Turn 1 | . 1 1 1 1 1 1 . Gunslinging . | . . . . . . . . Exploded . | . . . . . . . . Melee 1 | . . . . . 1 1 . Uniques/NPCs Destroyed . | . . . . . . . . Combat | -11 -10 -9 -8 -7 -6 -5 -1 -------- Run | Yrd Mat Mat Mat Fac Fac Fac Lai Hostile Shots Fired 1193 | . 40 101 62 47 98 833 12 Missed 318 | . 14 21 18 12 20 229 4 Hits 875 | . 26 80 44 35 78 604 8 Melee 40 | . 1 . . . 3 36 . Projectile 835 | . 25 80 44 35 75 568 8 AOE 17 | . . . . . . 17 . Critical Strikes 77 | . 1 4 7 2 1 60 2 Damage Taken 18890 | . 359 999 737 935 1620 13998 242 Core 1689 | . 74 122 83 213 182 938 77 Absorbed by Shields 1178 | . . . . . . 1148 30 Reduced by Siege Mode 13 | . . . . . . 13 . Ignored by Resistances 457 | . . . . . . 457 . Core Remaining (%) 78 | 100 70 69 84 69 78 . . Volleys Fired 704 | . 27 44 22 30 10 570 1 Largest 4 | . 2 3 3 4 4 3 3 Hottest 208 | . 50 80 83 208 176 180 180 Shots Fired 1081 | . 54 132 66 106 38 681 4 Gun 610 | . 27 44 22 53 . 462 2 Cannon 446 | . 27 88 44 53 38 194 2 Launcher 24 | . . . . . . 24 . Special 1 | . . . . . . 1 . Kinetic 1013 | . 54 132 66 92 38 629 2 Thermal 44 | . . . . 14 . 28 2 Explosive 2 | . . . . . . 2 . Electromagnetic 22 | . . . . . . 22 . Robot Hit Streak 47 | . 7 12 27 14 10 47 3 Robot Miss Streak 11 | . 2 11 2 2 4 10 3 Penetration Max . | . . . . . . . . Secondary Targets 1 | . . . . 1 . . . Max Gunslinging Chain 1 | . . . . 1 . . . Shots Hit Robots 900 | . 38 82 53 71 72 581 3 Core Hits 432 | . 10 27 18 33 43 300 1 Critical Kills 1 | . . . . . . 1 . Critical Parts Destroyed 4 | . . . . . . 4 . Critical Strikes 34 | . 1 1 2 3 2 25 . Burn 1 | . . . . 1 . . . Destroy 5 | . . . . . . 5 . Blast 13 | . 1 1 2 2 . 7 . Sever 12 | . . . . . 1 11 . Impale 3 | . . . . . 1 2 . Melee Attacks 195 | . 2 9 . 26 49 109 . Impact 37 | . 2 9 . 26 . . . Slashing 123 | . . . . . 22 101 . Piercing 35 | . . . . . 27 8 . Sneak Attacks 5 | . . 1 . . 1 3 . Combat Hostiles . | . . . . . . . . Follow-up Attacks 27 | . . . . . 4 23 . Damage Inflicted 27027 | . 560 1377 884 1616 1935 20542 113 Guns 14722 | . 272 340 257 703 . 13112 38 Cannons 7356 | . 270 997 627 852 661 3874 75 Explosions 266 | . . . . 26 . 240 . Melee 4627 | . 18 36 . . 1274 3299 . Ramming 56 | . . 4 . 35 . 17 . Kinetic 20883 | . 542 1337 884 1339 661 16045 75 Thermal 1221 | . . . . 242 . 941 38 Explosive 103 | . . . . . . 103 . Electromagnetic 137 | . . . . . . 137 . Impact 54 | . 18 36 . . . . . Slashing 3734 | . . . . . 622 3112 . Piercing 839 | . . . . . 652 187 . Highest Corruption 43 | . . 3 5 9 5 43 43 Average Corruption 17 | . . 2 3 6 2 24 43 Corruption Purged . | . . . . . . . . Corruption Blocked . | . . . . . . . . Effects 197 | . . 11 3 10 6 162 5 Message Errors 49 | . . 2 . 3 2 41 1 Matter Fused 41 | . . 1 1 5 2 31 1 Heat Flow Errors 10 | . . 1 . . . 9 . Energy Discharges 21 | . . 2 . 1 1 16 1 Parts Rejected 6 | . . 1 1 . . 4 . Data Loss (minor) 16 | . . 2 1 1 . 12 . Data Loss (major) 12 | . . 2 . . . 10 . Misfires 6 | . . . . . 1 4 1 Alerts 4 | . . . . . . 4 . Misdirections 3 | . . . . . . 2 1 Weapon Failures 29 | . . . . . . 29 . Overload Shots . | . . . . . . . . Overflow Damage 510 | . 4 . 28 24 130 324 . Projectiles 130 | . 4 . 28 24 . 74 . Explosions . | . . . . . . . . Melee 380 | . . . . . 130 250 . Knockbacks 50 | . 3 7 4 12 5 19 . Impact 1 | . . 1 . . . . . Kinetic 49 | . 3 6 4 12 5 19 . Secondary . | . . . . . . . . Self-Inflicted Damage 131 | . . . . 87 . 44 . Shots 3 | . . . . 1 . 2 . Rammed 9 | . . 3 . 5 . 1 . Targets Rammed 12 | . . 3 . 8 . 1 . Kicked 3 | . . . . 3 . . . Crushed . | . . . . . . . . Highest Temperature 389 | . 40 307 41 383 370 389 310 Average Temperature 101 | . 29 87 17 124 148 97 141 Received Heat Transfer 4702 | . 66 216 360 330 306 3424 . Effects 2 | . . . . 1 1 . . Energy Bleed 2 | . . . . 1 1 . . Siege Activations 3 | . . . . . . 3 . Total Turns 38 | . . . . . . 38 . Longest Duration 20 | . . . . . . 20 . Martial Activations . | . . . . . . . . Shielding Activations . | . . . . . . . . Robots Disrupted . | . . . . . . . . Combat Hostiles . | . . . . . . . . Robots Corrupted . | . . . . . . . . Combat Hostiles . | . . . . . . . . Parts Fried 1 | . . . . . . 1 . Impact Corruptions . | . . . . . . . . Robots Melted 2 | . . . . 1 . 1 . Combat Hostiles 2 | . . . . 1 . 1 . Parts Melted 6 | . . . . 1 4 1 . Heat Transferred 1350 | . . . . 297 . 1045 8 Parts Sabotaged . | . . . . . . . . Parts Stolen . | . . . . . . . . Parts Stripped . | . . . . . . . . Power Chain Reactions 2 | . . . . 2 . . . Alert | -11 -10 -9 -8 -7 -6 -5 -1 ------- Run | Yrd Mat Mat Mat Fac Fac Fac Lai Maximum Alert Level . | . . . . . . . . Low Security (%) 100 | . 100 100 100 100 100 100 100 Level 1 . | . . . . . . . . Level 2 . | . . . . . . . . Level 3 . | . . . . . . . . Level 4 . | . . . . . . . . Level 5 . | . . . . . . . . High Security . | . . . . . . . . Max Security . | . . . . . . . . Peak Influence 102 | . 20 15 . 102 20 61 . Initial 12 | . . . . . 12 . . Average 8 | . 2 . . 27 1 5 . Influence Increases 712 | . 49 21 . 317 49 276 . Destroy 0b10 Robot/C 140 | . 20 . . 100 20 . . Destroy 0b10 Robot/NC 15 | . 5 . . . . 10 . Destroy Leader 22 | . 2 . . 20 . . . Successful Hack 52 | . 6 2 . 18 26 . . Select Force Hacks 50 | . . . . 50 . . . Disable Machine 90 | . 15 15 . 45 . 15 . Destroy Structure 283 | . 1 4 . 39 3 236 . Partial Spotted 15 | . . . . . . 15 . Lose Combat Pursuer 45 | . . . . 45 . . . Influence Decreases 712 | . 49 21 . 291 74 217 60 Entered New Map 75 | . . . . . 14 1 60 Time Decay 576 | . 49 21 . 271 60 175 . Lost Part 61 | . . . . 20 . 41 . Squads Dispatched 154 | . 6 7 8 32 27 74 . Investigation 20 | . 2 3 1 6 5 3 . Extermination . | . . . . . . . . Reinforcement 25 | . 4 3 4 4 8 2 . Assault 55 | . . 1 3 11 5 35 . Garrison 54 | . . . . 11 9 34 . Intercept . | . . . . . . . . Searches Triggered . | . . . . . . . . Construction Impeded . | . . . . . . . . Haulers Reinforced 9 | . . . . 3 5 1 . Active Scanning Responses . | . . . . . . . . Cargo Convoy Interrupts . | . . . . . . . . Stealth | -11 -10 -9 -8 -7 -6 -5 -1 --------- Run | Yrd Mat Mat Mat Fac Fac Fac Lai Distress Signals 56 | . 1 12 10 6 8 19 . Communications Jammed . | . . . . . . . . Distress Signals . | . . . . . . . . Times Spotted 176 | . 10 10 11 23 14 107 1 Peak Tracking Total 8 | . 4 4 4 4 4 8 2 Tactical Retreats 7 | . . . . 3 1 3 . Traps | -11 -10 -9 -8 -7 -6 -5 -1 ------- Run | Yrd Mat Mat Mat Fac Fac Fac Lai Traps Triggered 1 | . . . . . . 1 . Indirectly . | . . . . . . . . Trap Hack Attempts . | . . . . . . . . Triggered . | . . . . . . . . Disarmed . | . . . . . . . . Reprogrammed . | . . . . . . . . Reused . | . . . . . . . . Traps Extracted . | . . . . . . . . Installed . | . . . . . . . . Triggered . | . . . . . . . . Machines | -11 -10 -9 -8 -7 -6 -5 -1 ---------- Run | Yrd Mat Mat Mat Fac Fac Fac Lai Machines Disabled 6 | . 1 1 . 3 . 1 . Max in Single Turn 2 | . 1 1 . 2 . 1 . Garrison Access 4 | . . . . . . 4 . Machines Repaired . | . . . . . . . . Machines Dismantled . | . . . . . . . . Machines Sabotaged . | . . . . . . . . Overloaded Fab Kills . | . . . . . . . . Hacking | -11 -10 -9 -8 -7 -6 -5 -1 --------- Run | Yrd Mat Mat Mat Fac Fac Fac Lai Machines Accessed 17 | . 2 4 . 5 3 3 . Terminals 7 | . 2 2 . 2 . 1 . Fabricators 3 | . . . . 1 1 1 . Repair Stations 2 | . . . . 1 . 1 . Recycling Units 2 | . . . . 1 1 . . Scanalyzers 3 | . . 2 . . 1 . . Garrison Access . | . . . . . . . . Total Hacks 41 | . 5 11 . 13 6 6 . Successful 11 | . 2 4 . 2 3 . . Failed 29 | . 3 6 . 11 3 6 . Catastrophic 8 | . 2 1 . 4 . 1 . Database Lockouts 1 | . . 1 . . . . . Manual 12 | . 3 . . 7 . 2 . Terminals 20 | . 5 6 . 7 . 2 . Fabricators 3 | . . . . 1 1 1 . Repair Stations 6 | . . . . 3 . 3 . Recycling Units 4 | . . . . 2 2 . . Scanalyzers 8 | . . 5 . . 3 . . Garrison Access . | . . . . . . . . Terminal Hacks 3 | . 2 . . 1 . . . Registered Components 1 | . 1 . . . . . . Registered Prototypes 1 | . . . . 1 . . . Zone Layout 1 | . 1 . . . . . . Fabricator Hacks 1 | . . . . . 1 . . Build 1 | . . . . . 1 . . Repair Station Hacks . | . . . . . . . . Recycling Unit Hacks 1 | . . . . . 1 . . Retrieve Components 1 | . . . . . 1 . . Scanalyzer 5 | . . 4 . . 1 . . Retrieve Study 5 | . . 4 . . 1 . . Garrison Access Hacks . | . . . . . . . . Unauthorized Hacks 1 | . . . . 1 . . . Terminals . | . . . . . . . . Fabricators 1 | . . . . 1 . . . Overload 1 | . . . . 1 . . . Repair Stations . | . . . . . . . . Recycling Units . | . . . . . . . . Scanalyzers . | . . . . . . . . Garrison Access . | . . . . . . . . Data Cores Recovered . | . . . . . . . . Used . | . . . . . . . . Hacking Detections 15 | . 2 3 . 4 3 3 . Full Trace Events 6 | . . 1 . 2 1 2 . Feedback Events . | . . . . . . . . Feedback Blocked . | . . . . . . . . Robot Schematics Acquired . | . . . . . . . . Robots Built . | . . . . . . . . Authchips . | . . . . . . . . Time . | . . . . . . . . Total Robot Build Rating . | . . . . . . . . Part Schematics Acquired . | . . . . . . . . Parts Built 2 | . . . . . 2 . . Authchips . | . . . . . . . . Time 64 | . . . . . 64 . . Total Part Build Rating 16 | . . . . . 16 . . Part Studies Acquired 5 | . . 4 . . 1 . . Parts Repaired . | . . . . . . . . Time . | . . . . . . . . Parts Recycled . | . . . . . . . . Recycled Matter . | . . . . . . . . Retrieved Matter . | . . . . . . . . Retrieved Components 2 | . . . . . 2 . . Parts Scanalyzed . | . . . . . . . . Part Schematics Acquired . | . . . . . . . . Parts Damaged . | . . . . . . . . Bothacking | -11 -10 -9 -8 -7 -6 -5 -1 ------------ Run | Yrd Mat Mat Mat Fac Fac Fac Lai Used RIF Installer . | . . . . . . . . Robots Hacked . | . . . . . . . . Non-combat . | . . . . . . . . Combat . | . . . . . . . . Robot Hacks Applied . | . . . . . . . . Relay Couplers Released 4 | . . . . . . 4 . Machine Destruction 4 | . . . . . . 4 . Fabnet Peak Effective % . | . . . . . . . . Robots Rewired . | . . . . . . . . Allies Hacked . | . . . . . . . . Hacks Repelled . | . . . . . . . . Allies | -11 -10 -9 -8 -7 -6 -5 -1 -------- Run | Yrd Mat Mat Mat Fac Fac Fac Lai Total Allies . | . . . . . . . . Largest Group . | . . . . . . . . Highest-Rated Group . | . . . . . . . . Highest-Rated Ally . | . . . . . . . . Total Orders 3 | . . . . . . 3 . EXPLORE 1 | . . . . . . 1 . RETURN 2 | . . . . . . 2 . Ally Attacks 16 | . . . . . . 16 . Total Damage . | . . . . . . . . Kills . | . . . . . . . . Allies Corrupted . | . . . . . . . . Allies Melted . | . . . . . . . . Intel | -11 -10 -9 -8 -7 -6 -5 -1 ------- Run | Yrd Mat Mat Mat Fac Fac Fac Lai Active Infowar (turns) 4357 | . . 256 . 168 602 3253 78 Optics 2872 | . . . . . . 2794 78 IFF 592 | . . . . . 135 457 . Terrain 257 | . . 256 . . . 1 . Seismic 497 | . . . . 30 467 . . Machine Analysis 138 | . . . . 138 . . . Jamming 2 | . . . . . . 2 . Robot Analysis Total . | . . . . . . . . Derelict Logs Recovered . | . . . . . . . . Drone Launches 25 | . . . . . . 25 . Drone Recoveries 9 | . . . . . . 9 . Exploration | -11 -10 -9 -8 -7 -6 -5 -1 ------------- Run | Yrd Mat Mat Mat Fac Fac Fac Lai Turns Passed 7457 | . 434 642 355 1290 734 3924 78 Spaces Moved 3132 | 1 207 264 168 694 343 1417 38 Core 1 | . . . . . . 1 . Treads 1046 | . 207 264 168 307 44 56 . Legs 94 | 1 . . . 93 . . . Wheels 1991 | . . . . 294 299 1360 38 Hover . | . . . . . . . . Flight . | . . . . . . . . Fastest Speed 105 | 120 160 160 160 115 115 105 155 Average Speed 145 | 120 160 160 160 147 133 141 155 Slowest Speed 1200 | 120 160 160 160 385 160 1200 155 Overloaded Moves . | . . . . . . . . Propulsion Burnouts . | . . . . . . . . Robots Hopped . | . . . . . . . . Potential Cave-ins 2 | . . 2 . . . . . Cave-ins Triggered . | . . . . . . . . Exploration Rate (%) 27 | 2 54 30 22 22 11 31 48 Regions Visited 7 Branch Regions 1 Pre-discovered Areas . | . . . . . . . . Known Exits Taken 1 | . . . . . . 1 . Unknown Exits Taken 6 | 1 1 1 1 1 1 . . Scrap Searched . | . . . . . . . . Spaces Dug 49 | . 1 6 . 9 3 30 . Terrain Destroyed 157 | . 1 6 . 48 3 99 . Melee 31 | . 1 6 . 9 3 12 . Projectile 81 | . . . . 4 . 77 . AOE 45 | . . . . 35 . 10 . Terrain Rammed . | . . . . . . . . Walls Destroyed . | . . . . . . . . Machines Disabled . | . . . . . . . . Actions | -11 -10 -9 -8 -7 -6 -5 -1 --------- Run | Yrd Mat Mat Mat Fac Fac Fac Lai Total 4955 | . 252 347 203 844 534 2732 43 Wait 570 | . . 17 . 1 93 459 . Move 3125 | . 206 263 167 693 342 1416 38 Hop . | . . . . . . . . Pick Up 83 | . 7 1 6 17 9 41 2 Fast Attach 66 | . 1 2 2 19 7 34 1 Attach 48 | . . 3 2 3 3 37 . Detach 23 | . . 1 . 1 2 19 . Swap 96 | . 5 4 3 13 14 56 1 Drop 73 | . 4 . 1 33 12 23 . Fire 704 | . 27 44 22 30 10 570 1 Melee 155 | . 2 9 . 26 42 76 . Ram 3 | . . . . 2 . 1 . Kick 3 | . . . . 3 . . . Crush 6 | . . 3 . 3 . . . Escape Stasis . | . . . . . . . . Rewire . | . . . . . . . . Trap . | . . . . . . . . Miscellaneous . | . . . . . . . . Route ------- -11/Scrapyard -10/Materials -9/Materials -8/Materials -7/Factory -6/Factory -5/Factory -1/Lair History --------- Turn | Location | Event 1 | -11/Scrapyard | Discovered new exit (range 0) 1 | -11/Scrapyard | Entered Materials 107 | -10/Materials | Discovered new exit (range 16) 307 | -10/Materials | Build established: Mutant 416 | -10/Materials | Discovered new exit (range 9) 435 | -10/Materials | Entered another Materials area 435 | -9/Materials | Evolved 2 slots: Utility x1, Weapon x1 949 | -9/Materials | Central database locked down 1071 | -9/Materials | Discovered new exit (range 5) 1077 | -9/Materials | Entered another Materials area 1077 | -8/Materials | Evolved 2 slots: Propulsion x1, Utility x1 1427 | -8/Materials | Discovered new exit (range 4) 1432 | -8/Materials | Entered Factory 1432 | -7/Factory | Evolved 2 slots: Propulsion x1, Weapon x1 1688 | -7/Factory | Discovered new exit (range 15) 1861 | -7/Factory | Discovered new exit (range 8) 1954 | -7/Factory | Build established: Gunner 2034 | -7/Factory | Garrison activated, responded to threat 2110 | -7/Factory | Garrison activated, responded to threat 2143 | -7/Factory | Garrison activated, responded to threat 2366 | -7/Factory | Discovered new exit (range 13) 2429 | -7/Factory | Garrison activated, responded to threat 2461 | -7/Factory | Build established: Scavenger-Gunner 2722 | -7/Factory | Entered another Factory area 2722 | -6/Factory | Evolved 2 slots: Utility x2 2766 | -6/Factory | Garrison activated, responded to threat 2781 | -6/Factory | Garrison activated, responded to threat 2857 | -6/Factory | Fabricated Particle Reactor (x2) 3055 | -6/Factory | Garrison activated, responded to threat 3086 | -6/Factory | Garrison activated, responded to threat 3092 | -6/Factory | Garrison activated, responded to threat 3217 | -6/Factory | Garrison activated, responded to threat 3343 | -6/Factory | Garrison activated, responded to threat 3428 | -6/Factory | Discovered new exit (range 16) 3456 | -6/Factory | Entered another Factory area 3456 | -5/Factory | Evolved 2 slots: Utility x2 3540 | -5/Factory | Garrison activated, responded to threat 3561 | -5/Factory | Build established: Scavenger-Gladiator 3952 | -5/Factory | Garrison activated, responded to threat 3996 | -5/Factory | Garrison activated, responded to threat 4001 | -5/Factory | Lost 6 parts (2p1n1u2w) 4280 | -5/Factory | Detected disturbance from likely dimensional gate 4344 | -5/Factory | Garrison activated, responded to threat 4446 | -5/Factory | Found Prototype Device 4446 | -5/Factory | Identified Bomb Drone Bay 4459 | -5/Factory | Lost 6 parts (1p2n3u) 4504 | -5/Factory | Lost 6 allies 4537 | -5/Factory | Garrison activated, responded to threat 4550 | -5/Factory | Lost 4 parts (1p3u) 4972 | -5/Factory | Garrison activated, responded to threat 4987 | -5/Factory | System corruption reached 10% 5162 | -5/Factory | Garrison activated, responded to threat 5336 | -5/Factory | Build established: Scavenger-Tank 5431 | -5/Factory | Garrison activated, responded to threat 5736 | -5/Factory | Found Prototype Energy Cannon 5847 | -5/Factory | Identified Gui. Plasma Cannon 5953 | -5/Factory | Garrison activated, responded to threat 6045 | -5/Factory | Lost 3 allies 6111 | -5/Factory | Core integrity fell below 50% 6111 | -5/Factory | System corruption reached 30% 6241 | -5/Factory | Found Alien Reactor 6243 | -5/Factory | Identified Matter Drive 6517 | -5/Factory | Found Alien Artifact 6538 | -5/Factory | Identified Phase Redirector 6678 | -5/Factory | Discovered exit to Lair (range 19) 6918 | -5/Factory | Core integrity fell below 20% 6991 | -5/Factory | Garrison activated, responded to threat 7129 | -5/Factory | Found Prototype Device 7129 | -5/Factory | Identified Imp. Particle Accelerator 7214 | -5/Factory | Spotted SKR-2 7380 | -5/Factory | Entered Lair 7413 | -1/Lair | Found Gamma Bomb Array 7458 | -1/Lair | Destroyed by Major Abomination with Enhanced Hardcell Cannon Last Messages --------------- Antimatter Reactor. 07449_ Major Abomination absorbs Lgt. Quantum Reactor. 07451_ Wheel blasted off. 07453_ Major Abomination sheds Hungry Anomaly. 07453_ Hungry Anomaly eats Prototype Slashing Weapon. 07454_ Major Abomination absorbs Lgt. Quantum Reactor. 07454_ Hungry Anomaly eats Unknown Device. 07455_ Major Abomination spits out Unknown Power Core. 07455_ Major Abomination absorbs Quantum Reactor. 07455_ Hungry Anomaly eats Unknown Ballistic Gun. 07455_ Acquired Mass Driver. 07456_ Hungry Anomaly eats Unknown Hover Unit. 07456_ Slug penetrates Major Abomination. 07457_ Hungry Anomaly eats Adv. Target Analyzer. Map ----- +----------------------------------------------------+ | | | | | | | | | | | | | | | | | | | | | | | | | ?????????????????????????????? | | ?????????????????????????????? | | ?????????????????????????????? | | ????????????###########??????? | | ?????????####! ! #?????? | | ???????### ]! !!#????? | | ?????? !! ]= ! ##??? | | ?????? = [ ] #??? | | ?????? =] ! ! ! #??? | | ????? ! !*!! = ! ##?? | | ????? ! ==[ #?? | | ????????# !##? | | ????????#= %* %%#? | | ???? !A ** @=#?? | | ??????? ]?????##;=##; #?? | | ?????? ?????????## ##? | | ?????? ?????????##* !#? | | ????? ?????????#* #? | | ????? ! =???????##[ #? | | ????? ! ##????##%= !!#? | | ???? ! ####%!!] ! !#? | | ???? = [ !=!/! ! #? | | ??? ! !! #? | | ??? / #? | | ???! ! ! = / ! ! #? | | ??? [[ != ! = ! #? | | ?? ! ! ! !#? | | ?? = = #? | | ?? ! !=#? | | ??? ! ] ### ###= !=#? | | ???? ! ???####??##! ! #? | | ?????????????????????#!] !#? | | ????????????????????##* !#? | | ????????????????????# #? | | ???????????????????## ! #? | | !=! ##!#### #? | | ! ]!=! ! ] ##? | | = ! #?? | +----------------------------------------------------+ Best States ------------- Heat Dissipation 78 Coolant Potential 80 Energy Generation 25 Energy Capacity 350 Matter Stores 300 Matter Capacity 300 Sight Range 22 Terrain Scan Range 16 Terrain Scan Density 10 Armor Coverage 600 Resistance: KI 30 Weapon Cycling 20 Melee Speed Boost 20 Evasion (%) 40 Targeting Accuracy 6 Melee Accuracy 11 Core Analysis 6 Recoil Reduction 2 Particle Charging 40 Salvage Targeting 2 Item Schematics ----------------- None Robot Schematics ------------------ None Fabricated ------------ Particle Reactor | x2 | -6/Factory | Preloaded Repaired ---------- Nothing Studied --------- Lgt. Cannon | -9/Materials | Hacked Lgt. Treads | -9/Materials | Hacked Assault Rifle | -9/Materials | Hacked Aluminum Leg | -9/Materials | Hacked Hvy. Flak Cannon | -6/Factory | Hacked Alien Tech Used ----------------- Matter Drive Phase Redirector Achievements -------------- None Challenges ------------ None Game ------ Seed NeutronArchitectMaul Manual? 0 Play Time 01:43:24 Cumulative 342.6 hours Start 2025.10.29 @ 22:23:09 End 2025.10.30 @ 00:13:40 Sessions 1 Manual Loads 0 Difficulty Rogue Special Mode Halloween2019/Abominations Game No. 113 Rogue 113 Adventurer 0 Explorer 0 Win Type - Total 7 Types 3/0/3/0/0/0/0/0/0/1 Lore% 76 Gallery% 83 Achievement% 65 Wizard Run 0 Options --------- Layout 1 ASCII 0 Keyboard 1 Movement Arrows Keybinds 0 Fullscreen 1 Font 24/Smallcaps Map View 50x35 Zoom Use 0% Tactical HUD 1 Map Filters NONE Filters NONE Steam 1 RUN: 353494b4-7bbe-4186-80df-da7e2839f547